[Event "Titled Tuesday Blitz March 01 Early 2022"]
[White "Warmerdam, Max"]
[Black "Zhigalko, Sergei"]
[WhiteFideId "1048104"]
[BlackFideId "13502956"]
[WhiteElo "2873"]
[BlackElo "2925"]
[Result "1/2-1/2"]
[Round "08"]
[TimeControl "180+1"]
[Date "2022.03.01"]
[WhiteClock "0:00:10"]
[BlackClock "0:00:08"]

1. e4 {[%clk 0:03:00]}  c5 {[%clk 0:02:57]} 2. Nf3 {[%clk 0:03:00]}  Nc6 {[%clk 0:02:57]} 3. Bb5 {[%clk 0:03:00]}  Nf6 {[%clk 0:02:57]} 4. Bxc6 {[%clk 0:02:56]}  dxc6 {[%clk 0:02:58]} 5. d3 {[%clk 0:02:56]}  Bg4 {[%clk 0:02:58]} 6. h3 {[%clk 0:02:53]}  Bh5 {[%clk 0:02:58]} 7. b3 {[%clk 0:02:53]}  Nd7 {[%clk 0:02:57]} 8. Bb2 {[%clk 0:02:52]}  Qc7 {[%clk 0:02:55]} 9. g4 {[%clk 0:02:41]}  Bg6 {[%clk 0:02:55]} 10. e5 {[%clk 0:02:42]}  Nb6 {[%clk 0:02:45]} 11. Nc3 {[%clk 0:02:31]}  Nd5 {[%clk 0:02:38]} 12. Ne4 {[%clk 0:02:27]}  e6 {[%clk 0:02:31]} 13. Qe2 {[%clk 0:02:18]}  O-O-O {[%clk 0:02:17]} 14. O-O-O {[%clk 0:02:17]}  Be7 {[%clk 0:02:09]} 15. Kb1 {[%clk 0:02:16]}  Kb8 {[%clk 0:02:02]} 16. Nfd2 {[%clk 0:02:10]}  f5 {[%clk 0:01:44]} 17. Nd6 {[%clk 0:01:40]}  Rhf8 {[%clk 0:01:43]} 18. f3 {[%clk 0:00:55]}  Qa5 {[%clk 0:00:57]} 19. N2c4 {[%clk 0:00:33]}  Nc3+ {[%clk 0:00:57]} 20. Bxc3 {[%clk 0:00:29]}  Qxc3 {[%clk 0:00:58]} 21. a4 {[%clk 0:00:30]}  fxg4 {[%clk 0:00:28]} 22. fxg4 {[%clk 0:00:30]}  Qb4 {[%clk 0:00:13]} 23. h4 {[%clk 0:00:30]}  b5 {[%clk 0:00:12]} 24. Nb2 {[%clk 0:00:25]}  Rxd6 {[%clk 0:00:07]} 25. exd6 {[%clk 0:00:23]}  Bf6 {[%clk 0:00:08]} 26. h5 {[%clk 0:00:20]}  Qc3 {[%clk 0:00:07]} 27. d4 {[%clk 0:00:18]}  Bf7 {[%clk 0:00:02]} 28. axb5 {[%clk 0:00:10]}  Bxd4 {[%clk 0:00:02]} 29. Rxd4 {[%clk 0:00:10]}  cxd4 {[%clk 0:00:02]} 30. bxc6 {[%clk 0:00:10]}  Qxc6 {[%clk 0:00:03]} 31. Rd1 {[%clk 0:00:10]}  Qxd6 {[%clk 0:00:03]} 32. Qb5+ {[%clk 0:00:11]}  Qb6 {[%clk 0:00:03]} 33. Qe5+ {[%clk 0:00:11]}  Qc7 {[%clk 0:00:03]} 34. Qxg7 {[%clk 0:00:11]}  Rc8 {[%clk 0:00:03]} 35. Nc4 {[%clk 0:00:11]}  e5 {[%clk 0:00:03]} 36. Qxe5 {[%clk 0:00:12]}  Bxc4 {[%clk 0:00:03]} 37. Qxc7+ {[%clk 0:00:12]}  Rxc7 {[%clk 0:00:04]} 38. bxc4 {[%clk 0:00:13]}  Rxc4 {[%clk 0:00:05]} 39. g5 {[%clk 0:00:13]}  Rc5 {[%clk 0:00:05]} 40. Rg1 {[%clk 0:00:13]}  Kc7 {[%clk 0:00:03]} 41. g6 {[%clk 0:00:12]}  hxg6 {[%clk 0:00:04]} 42. hxg6 {[%clk 0:00:12]}  Rb5+ {[%clk 0:00:04]} 43. Ka2 {[%clk 0:00:10]}  Rb8 {[%clk 0:00:04]} 44. g7 {[%clk 0:00:11]}  Rg8 {[%clk 0:00:04]} 45. Kb3 {[%clk 0:00:11]}  Kd6 {[%clk 0:00:04]} 46. Kc4 {[%clk 0:00:12]}  Ke5 {[%clk 0:00:05]} 47. Kb5 {[%clk 0:00:11]}  Ke4 {[%clk 0:00:03]} 48. Ka6 {[%clk 0:00:11]}  d3 {[%clk 0:00:03]} 49. cxd3+ {[%clk 0:00:08]}  Kxd3 {[%clk 0:00:04]} 50. Kxa7 {[%clk 0:00:08]}  Ke4 {[%clk 0:00:05]} 51. Kb7 {[%clk 0:00:09]}  Kf5 {[%clk 0:00:05]} 52. Kc7 {[%clk 0:00:09]}  Kf6 {[%clk 0:00:06]} 53. Kd7 {[%clk 0:00:10]}  Rxg7+ {[%clk 0:00:07]} 54. Rxg7 {[%clk 0:00:10]}  Kxg7 {[%clk 0:00:08]} 1/2-1/2


[Site "https://www.chess.com"]

[Event "Titled Tuesday Blitz March 01 Early 2022"]
[White "Zheenbekov, Nurgazy"]
[Black "Tologon tegin, Semetei"]
[WhiteFideId "13800485"]
[BlackFideId "13800574"]
[WhiteElo "1959"]
[BlackElo "2258"]
[Result "1-0"]
[Round "08"]
[TimeControl "180+1"]
[Date "2022.03.01"]
[WhiteClock "0:00:18"]
[BlackClock "0:00:01"]

1. e4 {[%clk 0:02:55]}  e5 {[%clk 0:01:52]} 2. Nf3 {[%clk 0:02:53]}  Nc6 {[%clk 0:01:51]} 3. Bb5 {[%clk 0:02:53]}  a6 {[%clk 0:01:51]} 4. Ba4 {[%clk 0:02:54]}  Nf6 {[%clk 0:01:51]} 5. O-O {[%clk 0:02:54]}  Be7 {[%clk 0:01:50]} 6. Re1 {[%clk 0:02:54]}  b5 {[%clk 0:01:51]} 7. Bb3 {[%clk 0:02:54]}  O-O {[%clk 0:01:51]} 8. h3 {[%clk 0:02:53]}  d6 {[%clk 0:01:47]} 9. c3 {[%clk 0:02:52]}  Nb8 {[%clk 0:01:48]} 10. d4 {[%clk 0:02:52]}  Nbd7 {[%clk 0:01:48]} 11. Nbd2 {[%clk 0:02:52]}  Bb7 {[%clk 0:01:44]} 12. Bc2 {[%clk 0:02:53]}  Re8 {[%clk 0:01:43]} 13. Nf1 {[%clk 0:02:53]}  Bf8 {[%clk 0:01:44]} 14. Ng3 {[%clk 0:02:53]}  g6 {[%clk 0:01:44]} 15. Bg5 {[%clk 0:02:52]}  h6 {[%clk 0:01:42]} 16. Be3 {[%clk 0:02:52]}  Bg7 {[%clk 0:01:41]} 17. a4 {[%clk 0:02:49]}  c5 {[%clk 0:01:41]} 18. d5 {[%clk 0:02:42]}  c4 {[%clk 0:01:39]} 19. Qd2 {[%clk 0:02:38]}  Kh7 {[%clk 0:01:37]} 20. Nh2 {[%clk 0:02:36]}  Qc7 {[%clk 0:01:30]} 21. Rf1 {[%clk 0:02:36]}  Nc5 {[%clk 0:01:28]} 22. Ng4 {[%clk 0:02:16]}  Nxg4 {[%clk 0:00:55]} 23. hxg4 {[%clk 0:02:16]}  Rab8 {[%clk 0:00:50]} 24. axb5 {[%clk 0:02:14]}  axb5 {[%clk 0:00:47]} 25. Ne2 {[%clk 0:01:58]}  Bc8 {[%clk 0:00:45]} 26. g5 {[%clk 0:01:56]}  hxg5 {[%clk 0:00:42]} 27. Bxg5 {[%clk 0:01:55]}  f6 {[%clk 0:00:42]} 28. Be3 {[%clk 0:01:54]}  f5 {[%clk 0:00:32]} 29. exf5 {[%clk 0:01:50]}  Bxf5 {[%clk 0:00:31]} 30. Bxc5 {[%clk 0:01:42]}  Qxc5 {[%clk 0:00:21]} 31. Ng3 {[%clk 0:01:33]}  Bxc2 {[%clk 0:00:18]} 32. Qxc2 {[%clk 0:01:32]}  Qxd5 {[%clk 0:00:18]} 33. Rfd1 {[%clk 0:01:32]}  Qc6 {[%clk 0:00:15]} 34. Ra7 {[%clk 0:01:26]}  Rbd8 {[%clk 0:00:11]} 35. Qe2 {[%clk 0:00:41]}  d5 {[%clk 0:00:10]} 36. Rda1 {[%clk 0:00:38]}  Rd7 {[%clk 0:00:09]} 37. R1a6 {[%clk 0:00:37]}  Qc8 {[%clk 0:00:08]} 38. Qg4 {[%clk 0:00:32]}  Rxa7 {[%clk 0:00:08]} 39. Qh4+ {[%clk 0:00:33]}  Kg8 {[%clk 0:00:08]} 40. Rxa7 {[%clk 0:00:33]}  Qe6 {[%clk 0:00:08]} 41. Qg5 {[%clk 0:00:32]}  e4 {[%clk 0:00:08]} 42. Nh5 {[%clk 0:00:30]}  Bh8 {[%clk 0:00:05]} 43. Qh6 {[%clk 0:00:26]}  Re7 {[%clk 0:00:04]} 44. Ra8+ {[%clk 0:00:26]}  Re8 {[%clk 0:00:03]} 45. Ra7 {[%clk 0:00:26]}  Re7 {[%clk 0:00:04]} 46. Nf4 {[%clk 0:00:26]}  Qf6 {[%clk 0:00:03]} 47. Ra8+ {[%clk 0:00:20]}  Kf7 {[%clk 0:00:02]} 48. Nxd5 {[%clk 0:00:18]}  Qd6 {[%clk 0:00:01]} 49. Nxe7 {[%clk 0:00:18]} 1-0


[Site "https://www.chess.com"]

[Event "Titled Tuesday Blitz March 01 Early 2022"]
[White "Aldokhin, Ivan"]
[Black "Samant Aditya S"]
[WhiteFideId "24115720"]
[BlackFideId "35080580"]
[WhiteElo "2231"]
[BlackElo "1916"]
[Result "1-0"]
[Round "09"]
[TimeControl "180+1"]
[Date "2022.03.01"]
[WhiteClock "0:01:15"]
[BlackClock "0:01:07"]

1. e4 {[%clk 0:03:00]}  c5 {[%clk 0:03:00]} 2. Nf3 {[%clk 0:03:01]}  d6 {[%clk 0:03:00]} 3. d4 {[%clk 0:03:00]}  cxd4 {[%clk 0:03:01]} 4. Nxd4 {[%clk 0:03:01]}  Nf6 {[%clk 0:03:02]} 5. Nc3 {[%clk 0:03:01]}  Nc6 {[%clk 0:03:03]} 6. Bc4 {[%clk 0:02:54]}  e6 {[%clk 0:03:03]} 7. Bb3 {[%clk 0:02:53]}  Be7 {[%clk 0:02:58]} 8. Be3 {[%clk 0:02:52]}  a6 {[%clk 0:02:51]} 9. Qe2 {[%clk 0:02:50]}  Nxd4 {[%clk 0:02:41]} 10. Bxd4 {[%clk 0:02:49]}  b5 {[%clk 0:02:42]} 11. O-O-O {[%clk 0:02:48]}  Bb7 {[%clk 0:02:36]} 12. a3 {[%clk 0:02:29]}  O-O {[%clk 0:02:35]} 13. f4 {[%clk 0:02:17]}  Qc7 {[%clk 0:02:24]} 14. f5 {[%clk 0:01:56]}  e5 {[%clk 0:01:52]} 15. Bf2 {[%clk 0:01:55]}  Rac8 {[%clk 0:01:45]} 16. g4 {[%clk 0:01:48]}  Nd7 {[%clk 0:01:19]} 17. Nd5 {[%clk 0:01:35]}  Qd8 {[%clk 0:01:13]} 18. h4 {[%clk 0:01:31]}  a5 {[%clk 0:01:13]} 19. Qxb5 {[%clk 0:01:19]}  Bc6 {[%clk 0:01:12]} 20. Qd3 {[%clk 0:01:18]}  a4 {[%clk 0:01:09]} 21. Ba2 {[%clk 0:01:18]}  Qa5 {[%clk 0:01:07]} 22. Nxe7+ {[%clk 0:01:15]} 1-0


[Site "https://www.chess.com"]

[Event "Titled Tuesday Blitz March 01 Early 2022"]
[White "Artemenko, Oleg"]
[Black "Dobre, Claudiu-Cristian"]
[WhiteFideId "14201798"]
[BlackFideId "1211854"]
[WhiteElo "2287"]
[BlackElo "2207"]
[Result "0-1"]
[Round "09"]
[TimeControl "180+1"]
[Date "2022.03.01"]
[WhiteClock "0:00:39"]
[BlackClock "0:00:47"]

1. d4 {[%clk 0:02:55]}  d5 {[%clk 0:02:58]} 2. Nc3 {[%clk 0:02:55]}  c6 {[%clk 0:02:55]} 3. Bf4 {[%clk 0:02:54]}  g6 {[%clk 0:02:52]} 4. Qd2 {[%clk 0:02:54]}  Bg7 {[%clk 0:02:52]} 5. O-O-O {[%clk 0:02:54]}  Nf6 {[%clk 0:02:48]} 6. f3 {[%clk 0:02:54]}  b5 {[%clk 0:02:41]} 7. g4 {[%clk 0:02:52]}  Qa5 {[%clk 0:02:36]} 8. a3 {[%clk 0:02:43]}  Nbd7 {[%clk 0:02:29]} 9. Kb1 {[%clk 0:02:41]}  Nb6 {[%clk 0:02:29]} 10. Nxd5 {[%clk 0:02:15]}  Qxd2 {[%clk 0:02:24]} 11. Nxf6+ {[%clk 0:02:16]}  Bxf6 {[%clk 0:02:23]} 12. Rxd2 {[%clk 0:02:17]}  Nc4 {[%clk 0:02:19]} 13. Rd1 {[%clk 0:02:16]}  g5 {[%clk 0:02:15]} 14. Bc1 {[%clk 0:02:16]}  a5 {[%clk 0:02:05]} 15. e4 {[%clk 0:02:14]}  Ba6 {[%clk 0:01:57]} 16. e5 {[%clk 0:02:10]}  Bg7 {[%clk 0:01:57]} 17. Bxg5 {[%clk 0:02:10]}  b4 {[%clk 0:01:57]} 18. a4 {[%clk 0:02:06]}  Rb8 {[%clk 0:01:55]} 19. Nh3 {[%clk 0:02:03]}  b3 {[%clk 0:01:54]} 20. c3 {[%clk 0:02:03]}  h5 {[%clk 0:01:47]} 21. Bc1 {[%clk 0:01:59]}  hxg4 {[%clk 0:01:43]} 22. fxg4 {[%clk 0:02:00]}  Nxb2 {[%clk 0:01:40]} 23. Kxb2 {[%clk 0:01:48]}  Bxf1 {[%clk 0:01:39]} 24. Rdxf1 {[%clk 0:01:47]}  Rxh3 {[%clk 0:01:39]} 25. Rf2 {[%clk 0:01:45]}  c5 {[%clk 0:01:39]} 26. Bf4 {[%clk 0:01:42]}  cxd4 {[%clk 0:01:37]} 27. cxd4 {[%clk 0:01:42]}  Rb4 {[%clk 0:01:33]} 28. Bg3 {[%clk 0:01:37]}  Rxa4 {[%clk 0:01:23]} 29. Kxb3 {[%clk 0:01:26]}  Rxd4 {[%clk 0:01:23]} 30. Kc2 {[%clk 0:01:24]}  Rxg4 {[%clk 0:01:16]} 31. Rb1 {[%clk 0:01:23]}  Rb4 {[%clk 0:01:13]} 32. Ra1 {[%clk 0:01:18]}  Rb5 {[%clk 0:01:11]} 33. Re1 {[%clk 0:01:12]}  a4 {[%clk 0:01:06]} 34. Re4 {[%clk 0:01:03]}  a3 {[%clk 0:01:04]} 35. Rf3 {[%clk 0:01:03]}  Ra5 {[%clk 0:00:58]} 36. e6 {[%clk 0:00:57]}  fxe6 {[%clk 0:00:57]} 37. Rb4 {[%clk 0:00:52]}  Bf6 {[%clk 0:00:49]} 38. Rb8+ {[%clk 0:00:45]}  Kf7 {[%clk 0:00:49]} 39. Rf1 {[%clk 0:00:41]}  a2 {[%clk 0:00:49]} 40. Be5 {[%clk 0:00:39]}  Rxe5 {[%clk 0:00:47]} 0-1


[Site "https://www.chess.com"]

[Event "Titled Tuesday Blitz March 01 Early 2022"]
[White "Brunner, Nicolas"]
[Black "Rodchenkov, Vitaly"]
[WhiteFideId "620246"]
[BlackFideId "4152964"]
[WhiteElo "2372"]
[BlackElo "2337"]
[Result "1-0"]
[Round "09"]
[TimeControl "180+1"]
[Date "2022.03.01"]
[WhiteClock "0:00:22"]
[BlackClock "0:00:18"]

1. d4 {[%clk 0:03:00]}  Nf6 {[%clk 0:02:59]} 2. c4 {[%clk 0:03:00]}  e6 {[%clk 0:02:58]} 3. g3 {[%clk 0:02:59]}  d5 {[%clk 0:02:51]} 4. Bg2 {[%clk 0:02:58]}  Be7 {[%clk 0:02:52]} 5. Nf3 {[%clk 0:02:57]}  O-O {[%clk 0:02:52]} 6. O-O {[%clk 0:02:57]}  b6 {[%clk 0:02:52]} 7. cxd5 {[%clk 0:02:54]}  exd5 {[%clk 0:02:52]} 8. Nc3 {[%clk 0:02:54]}  Bb7 {[%clk 0:02:52]} 9. Bf4 {[%clk 0:02:53]}  Na6 {[%clk 0:02:52]} 10. Rc1 {[%clk 0:02:52]}  Re8 {[%clk 0:02:52]} 11. Ne5 {[%clk 0:02:50]}  Bf8 {[%clk 0:02:50]} 12. Qa4 {[%clk 0:02:48]}  c5 {[%clk 0:02:49]} 13. dxc5 {[%clk 0:02:37]}  Nxc5 {[%clk 0:02:48]} 14. Qd4 {[%clk 0:02:37]}  Ne6 {[%clk 0:02:47]} 15. Qd2 {[%clk 0:02:32]}  Nxf4 {[%clk 0:02:44]} 16. gxf4 {[%clk 0:02:32]}  Bd6 {[%clk 0:02:17]} 17. Nc4 {[%clk 0:01:49]}  Bb4 {[%clk 0:02:04]} 18. Rfd1 {[%clk 0:01:26]}  Ne4 {[%clk 0:01:41]} 19. Bxe4 {[%clk 0:01:25]}  dxe4 {[%clk 0:01:41]} 20. Qxd8 {[%clk 0:01:24]}  Raxd8 {[%clk 0:01:41]} 21. a3 {[%clk 0:01:05]}  Bf8 {[%clk 0:01:02]} 22. Nb5 {[%clk 0:01:05]}  Rxd1+ {[%clk 0:00:44]} 23. Rxd1 {[%clk 0:01:05]}  Ba6 {[%clk 0:00:44]} 24. Nc7 {[%clk 0:01:02]}  Rc8 {[%clk 0:00:43]} 25. Nxa6 {[%clk 0:01:00]}  Rxc4 {[%clk 0:00:43]} 26. Rd7 {[%clk 0:00:51]}  Rc2 {[%clk 0:00:38]} 27. Rxa7 {[%clk 0:00:29]}  Rxe2 {[%clk 0:00:36]} 28. b4 {[%clk 0:00:25]}  g6 {[%clk 0:00:35]} 29. Nc7 {[%clk 0:00:23]}  e3 {[%clk 0:00:26]} 30. fxe3 {[%clk 0:00:23]}  Rxe3 {[%clk 0:00:26]} 31. Ra8 {[%clk 0:00:23]}  Kg7 {[%clk 0:00:23]} 32. Ne8+ {[%clk 0:00:22]}  Kh6 {[%clk 0:00:20]} 33. Nf6 {[%clk 0:00:22]}  Bg7 {[%clk 0:00:18]} 34. Ng4+ {[%clk 0:00:22]} 1-0


[Site "https://www.chess.com"]

[Event "Titled Tuesday Blitz March 01 Early 2022"]
[White "Caruana, Fabiano"]
[Black "Jones, Gawain C B"]
[WhiteFideId "2020009"]
[BlackFideId "409561"]
[WhiteElo "2980"]
[BlackElo "2902"]
[Result "1-0"]
[Round "09"]
[TimeControl "180+1"]
[Date "2022.03.01"]
[WhiteClock "0:00:24"]
[BlackClock "0:00:06"]

1. d4 {[%clk 0:03:00]}  Nf6 {[%clk 0:03:00]} 2. c4 {[%clk 0:03:00]}  g6 {[%clk 0:03:00]} 3. Nc3 {[%clk 0:03:01]}  Bg7 {[%clk 0:03:00]} 4. e4 {[%clk 0:03:01]}  d6 {[%clk 0:03:00]} 5. h3 {[%clk 0:03:00]}  O-O {[%clk 0:03:00]} 6. Be3 {[%clk 0:03:00]}  e5 {[%clk 0:02:59]} 7. d5 {[%clk 0:03:00]}  Na6 {[%clk 0:02:59]} 8. g4 {[%clk 0:03:00]}  Nc5 {[%clk 0:02:59]} 9. f3 {[%clk 0:02:59]}  a5 {[%clk 0:02:45]} 10. Nge2 {[%clk 0:02:57]}  Bd7 {[%clk 0:02:42]} 11. Ng3 {[%clk 0:02:55]}  h5 {[%clk 0:02:41]} 12. Bg5 {[%clk 0:02:44]}  h4 {[%clk 0:02:39]} 13. Nge2 {[%clk 0:02:37]}  c6 {[%clk 0:02:33]} 14. Qd2 {[%clk 0:02:30]}  a4 {[%clk 0:02:09]} 15. Bg2 {[%clk 0:02:17]}  Qb6 {[%clk 0:02:00]} 16. Rb1 {[%clk 0:02:04]}  Qb4 {[%clk 0:01:55]} 17. O-O {[%clk 0:01:44]}  Qxc4 {[%clk 0:01:54]} 18. Rfd1 {[%clk 0:01:40]}  Rfe8 {[%clk 0:01:26]} 19. Rbc1 {[%clk 0:01:29]}  Qa6 {[%clk 0:01:24]} 20. Bxh4 {[%clk 0:01:26]}  cxd5 {[%clk 0:01:17]} 21. Bxf6 {[%clk 0:01:21]}  Bxf6 {[%clk 0:01:17]} 22. Nxd5 {[%clk 0:01:21]}  Bd8 {[%clk 0:01:07]} 23. Nec3 {[%clk 0:01:22]}  Ne6 {[%clk 0:01:02]} 24. Qf2 {[%clk 0:01:09]}  Bg5 {[%clk 0:00:58]} 25. Rc2 {[%clk 0:00:56]}  Rac8 {[%clk 0:00:56]} 26. h4 {[%clk 0:00:56]}  Bd8 {[%clk 0:00:50]} 27. g5 {[%clk 0:00:56]}  Kg7 {[%clk 0:00:47]} 28. Rcd2 {[%clk 0:00:53]}  Nf4 {[%clk 0:00:44]} 29. Bf1 {[%clk 0:00:44]}  Qc6 {[%clk 0:00:41]} 30. Kh2 {[%clk 0:00:37]}  Nxd5 {[%clk 0:00:22]} 31. Rxd5 {[%clk 0:00:37]}  Bb6 {[%clk 0:00:18]} 32. Qd2 {[%clk 0:00:37]}  Bd4 {[%clk 0:00:17]} 33. Rxd4 {[%clk 0:00:37]}  exd4 {[%clk 0:00:17]} 34. Qxd4+ {[%clk 0:00:38]}  Kg8 {[%clk 0:00:15]} 35. Nd5 {[%clk 0:00:35]}  Re6 {[%clk 0:00:15]} 36. Bh3 {[%clk 0:00:30]}  Qc5 {[%clk 0:00:07]} 37. Bxe6 {[%clk 0:00:24]}  Qxd4 {[%clk 0:00:06]} 38. Rxd4 {[%clk 0:00:24]}  Bxe6 {[%clk 0:00:06]} 39. Ne7+ {[%clk 0:00:24]} 1-0


[Site "https://www.chess.com"]

[Event "Titled Tuesday Blitz March 01 Early 2022"]
[White "Chernomordik, Pavel"]
[Black "Kadam, Om Manish"]
[WhiteFideId "2804530"]
[BlackFideId "45076294"]
[WhiteElo "2249"]
[BlackElo "1729"]
[Result "0-1"]
[Round "09"]
[TimeControl "180+1"]
[Date "2022.03.01"]
[WhiteClock "0:00:31"]
[BlackClock "0:01:26"]

1. e4 {[%clk 0:01:17]}  c6 {[%clk 0:02:38]} 2. Nc3 {[%clk 0:01:16]}  d5 {[%clk 0:02:38]} 3. Qf3 {[%clk 0:01:16]}  dxe4 {[%clk 0:02:34]} 4. Nxe4 {[%clk 0:01:16]}  Nf6 {[%clk 0:02:26]} 5. Nxf6+ {[%clk 0:01:15]}  exf6 {[%clk 0:02:26]} 6. Bc4 {[%clk 0:01:15]}  Be7 {[%clk 0:02:23]} 7. Ne2 {[%clk 0:01:14]}  O-O {[%clk 0:02:21]} 8. d4 {[%clk 0:01:14]}  Nd7 {[%clk 0:02:17]} 9. Bd2 {[%clk 0:01:13]}  Nb6 {[%clk 0:02:17]} 10. Bb3 {[%clk 0:01:13]}  a5 {[%clk 0:02:17]} 11. a4 {[%clk 0:01:13]}  Re8 {[%clk 0:02:12]} 12. O-O {[%clk 0:01:12]}  Bf8 {[%clk 0:02:06]} 13. c3 {[%clk 0:01:12]}  Be6 {[%clk 0:02:03]} 14. Bxe6 {[%clk 0:01:09]}  Rxe6 {[%clk 0:02:04]} 15. Ng3 {[%clk 0:01:09]}  Qd5 {[%clk 0:02:04]} 16. Qg4 {[%clk 0:01:04]}  g6 {[%clk 0:02:02]} 17. Qd1 {[%clk 0:00:55]}  Nc4 {[%clk 0:01:58]} 18. Bc1 {[%clk 0:00:54]}  Rae8 {[%clk 0:01:55]} 19. b3 {[%clk 0:00:54]}  Nb6 {[%clk 0:01:54]} 20. c4 {[%clk 0:00:53]}  Qd7 {[%clk 0:01:55]} 21. Be3 {[%clk 0:00:47]}  Nc8 {[%clk 0:01:52]} 22. Qd2 {[%clk 0:00:44]}  Nd6 {[%clk 0:01:51]} 23. Qxa5 {[%clk 0:00:42]}  h5 {[%clk 0:01:35]} 24. Rfd1 {[%clk 0:00:39]}  h4 {[%clk 0:01:34]} 25. Ne2 {[%clk 0:00:36]}  Nf5 {[%clk 0:01:34]} 26. Nf4 {[%clk 0:00:35]}  Nxe3 {[%clk 0:01:29]} 27. Nxe6 {[%clk 0:00:32]}  Nxd1 {[%clk 0:01:26]} 28. Nxf8 {[%clk 0:00:31]}  Qxd4 {[%clk 0:01:26]} 0-1


[Site "https://www.chess.com"]

[Event "Titled Tuesday Blitz March 01 Early 2022"]
[White "Desideri, Ricardo Maruchi"]
[Black "Bashirli, Saadat"]
[WhiteFideId "2110440"]
[BlackFideId "13429990"]
[WhiteElo "1945"]
[BlackElo "1173"]
[Result "1-0"]
[Round "09"]
[TimeControl "180+1"]
[Date "2022.03.01"]
[WhiteClock "0:00:20"]
[BlackClock "0:00:42"]

1. e4 {[%clk 0:03:00]}  c5 {[%clk 0:02:59]} 2. Nf3 {[%clk 0:02:57]}  g6 {[%clk 0:02:59]} 3. d4 {[%clk 0:02:54]}  cxd4 {[%clk 0:03:00]} 4. Nxd4 {[%clk 0:02:54]}  Nc6 {[%clk 0:03:00]} 5. Be3 {[%clk 0:02:51]}  Nf6 {[%clk 0:02:59]} 6. Nc3 {[%clk 0:02:45]}  Bg7 {[%clk 0:02:58]} 7. Bc4 {[%clk 0:02:39]}  O-O {[%clk 0:02:55]} 8. Bb3 {[%clk 0:02:31]}  d6 {[%clk 0:02:55]} 9. h3 {[%clk 0:02:28]}  Bd7 {[%clk 0:02:52]} 10. f4 {[%clk 0:02:27]}  a5 {[%clk 0:02:49]} 11. a4 {[%clk 0:02:25]}  Nh5 {[%clk 0:02:45]} 12. Nde2 {[%clk 0:02:08]}  e5 {[%clk 0:02:35]} 13. g4 {[%clk 0:01:50]}  exf4 {[%clk 0:02:25]} 14. Nxf4 {[%clk 0:01:30]}  Nxf4 {[%clk 0:02:18]} 15. Bxf4 {[%clk 0:01:30]}  Qh4+ {[%clk 0:02:13]} 16. Kf1 {[%clk 0:01:28]}  Bd4 {[%clk 0:02:10]} 17. Rh2 {[%clk 0:01:21]}  Ne5 {[%clk 0:02:02]} 18. Qxd4 {[%clk 0:01:17]}  Nf3 {[%clk 0:01:48]} 19. Qf2 {[%clk 0:01:13]}  Nxh2+ {[%clk 0:01:45]} 20. Qxh2 {[%clk 0:01:11]}  Qf6 {[%clk 0:01:30]} 21. g5 {[%clk 0:00:57]}  Qd4 {[%clk 0:01:19]} 22. Rd1 {[%clk 0:00:55]}  Qb6 {[%clk 0:01:12]} 23. Rxd6 {[%clk 0:00:52]}  Bc6 {[%clk 0:01:11]} 24. Nd5 {[%clk 0:00:41]}  Qa6+ {[%clk 0:01:03]} 25. Ke1 {[%clk 0:00:32]}  Qa7 {[%clk 0:00:53]} 26. Be3 {[%clk 0:00:29]}  Qb8 {[%clk 0:00:50]} 27. Ne7+ {[%clk 0:00:22]}  Kg7 {[%clk 0:00:45]} 28. Qe5+ {[%clk 0:00:20]}  f6 {[%clk 0:00:44]} 29. gxf6+ {[%clk 0:00:20]}  Kh8 {[%clk 0:00:42]} 30. f7# {[%clk 0:00:20]} 1-0


[Site "https://www.chess.com"]

[Event "Titled Tuesday Blitz March 01 Early 2022"]
[White "Devaev, Alexander"]
[Black "Bodnaruk, Anastasia"]
[WhiteFideId "4169395"]
[BlackFideId "4181751"]
[WhiteElo "2185"]
[BlackElo "2393"]
[Result "0-1"]
[Round "09"]
[TimeControl "180+1"]
[Date "2022.03.01"]
[WhiteClock "0:01:23"]
[BlackClock "0:01:31"]

1. Nf3 {[%clk 0:03:00]}  Nf6 {[%clk 0:02:55]} 2. d4 {[%clk 0:03:00]}  g6 {[%clk 0:02:55]} 3. c4 {[%clk 0:03:01]}  Bg7 {[%clk 0:02:55]} 4. Nc3 {[%clk 0:03:01]}  O-O {[%clk 0:02:55]} 5. e4 {[%clk 0:03:02]}  d6 {[%clk 0:02:56]} 6. h3 {[%clk 0:03:02]}  e5 {[%clk 0:02:55]} 7. d5 {[%clk 0:03:02]}  a5 {[%clk 0:02:55]} 8. Bg5 {[%clk 0:03:03]}  Qe8 {[%clk 0:02:52]} 9. Be2 {[%clk 0:03:01]}  Na6 {[%clk 0:02:44]} 10. g4 {[%clk 0:02:59]}  Nd7 {[%clk 0:02:43]} 11. h4 {[%clk 0:02:55]}  Ndc5 {[%clk 0:02:42]} 12. Rg1 {[%clk 0:02:53]}  Bd7 {[%clk 0:02:23]} 13. h5 {[%clk 0:02:44]}  a4 {[%clk 0:02:14]} 14. Qd2 {[%clk 0:02:42]}  c6 {[%clk 0:02:04]} 15. Bh6 {[%clk 0:01:33]}  cxd5 {[%clk 0:01:48]} 16. cxd5 {[%clk 0:01:31]}  b5 {[%clk 0:01:47]} 17. Qe3 {[%clk 0:01:24]}  b4 {[%clk 0:01:41]} 18. Nd1 {[%clk 0:01:24]}  Bb5 {[%clk 0:01:33]} 19. Rc1 {[%clk 0:01:24]}  Bxe2 {[%clk 0:01:32]} 20. Qxe2 {[%clk 0:01:23]}  Bxh6 {[%clk 0:01:31]} 0-1


[Site "https://www.chess.com"]